Cogmind - Beta 15 @@@ ROGUE MODE // 2025.09.02 @ 21:51:25 Player: Silfurdreki Result: Escaped! Performance ------------- Evolutions (9) 4500 Regions Visited (21) 4200 Robots Destroyed (42) 210 Value Destroyed (1364) 1364 Prototype IDs (56) 1120 Alien Tech Used (0) 0 Bonus (4600) 4600 TOTAL SCORE: 15994 Bonus ------- Aligned with FarCom 300 Met Data Miner 300 Met Warlord at Base 500 MAIN.C Attacked Warlord 500 Win 3000 Cogmind --------- Core Integrity 1400/1600 Matter 89/300 Energy 182/190 System Corruption 0% Temperature Cool (20) Movement Flying (25) Location To Epsilon Eridani Parts ------- > --- POWER (3) -------- Light Quantum Reactor > --- PROPULSION (8) --- Nuclear Pulse Array Field Propulsion Array Diametric Drive Q-thruster Electron Diverter > --- UTILITY (12) ----- Experimental Optical Array Advanced Targeting Computer Advanced Reaction Control System Hacking Suite Advanced Hacking Suite System Shield Improved System Shield > --- WEAPON (2) ------- Vortex Lance > --- INVENTORY (5) ---- Q-thruster Q-thruster Q-thruster Peak State ------------ > --- POWER ------------ Light Antimatter Reactor Light Antimatter Reactor > --- PROPULSION ------- Nuclear Pulse Array Impulse Thruster Field Propulsion Array Q-thruster Q-thruster Electron Diverter > --- UTILITY ---------- Improved Heat Sink Experimental Optical Array Advanced Reaction Control System Improved Medium Armor Plating Centrium Light Armor Plating Advanced Thermal Shield Advanced Shield Generator Hacking Suite Advanced Hacking Suite System Shield System Shield Improved System Shield > --- WEAPON ----------- Enhanced Quantum Rifle Vortex Lance > --- INVENTORY -------- Nuclear Pulse Array Q-thruster Q-thruster Q-thruster [Rating: 157] Favorites ----------- Power Ion Engine Engine Ion Engine Power Core Micro Nuclear Core Reactor Light Antimatter Reactor Propulsion Aluminum Leg Leg Aluminum Leg Flight Unit Electron Diverter Utility System Shield Device Seismic Detector Storage Medium Storage Unit Processor Targeting Computer Hackware System Shield Protection Improved Medium Armor Plating Weapon Assault Rifle Energy Gun Enhanced Quantum Rifle Energy Cannon Phase Cannon Ballistic Gun Assault Rifle Ballistic Cannon Light Cannon Launcher Improved Grenade Launcher Impact Weapon Shock Maul Slashing Weapon Chainsword Piercing Weapon Vortex Lance Build | -11 -10 -10 -10 -9 -8 -7 -7 -7 -6 -6 -6 -5 -5 -5 -5 -5 -4 -4 -3 -2 -1 ------- Run | Yrd Mat Min Exi Min Mat Fac Was Fac Fac Low Dat Pro Fac Upp Upp War Pro Fac Res Res Acc Slots Evolved 18 | . . . . . 4 2 . . 2 . . . 2 . . . . 2 2 2 2 Power 2 | . . . . . . 1 . . . . . . . . . . . . . . 1 Propulsion 6 | . . . . . 2 . . . 1 . . . . . . . . 1 . 1 1 Utility 10 | . . . . . 2 1 . . 1 . . . 2 . . . . 1 2 1 . Weapon . | . . . . . . . . . . . . . . . . . . . . . . Parts Attached 109 | 7 4 . . 3 16 7 1 7 5 . . . 8 . 4 11 5 7 8 3 13 Power 18 | 1 . . . 1 2 3 . 3 . . . . 2 . . 1 2 . 1 . 2 Engine 6 | 1 . . . . 1 1 . 1 . . . . 1 . . . 1 . . . . Core 7 | . . . . 1 1 2 . 2 . . . . 1 . . . . . . . . Reactor 5 | . . . . . . . . . . . . . . . . 1 1 . 1 . 2 Propulsion 30 | 2 2 . . 2 5 1 . . 2 . . . 1 . 1 5 1 2 1 2 3 Treads . | . . . . . . . . . . . . . . . . . . . . . . Leg 11 | 2 2 . . 2 5 . . . . . . . . . . . . . . . . Wheel . | . . . . . . . . . . . . . . . . . . . . . . Hover . | . . . . . . . . . . . . . . . . . . . . . . Flight 19 | . . . . . . 1 . . 2 . . . 1 . 1 5 1 2 1 2 3 Utility 42 | 2 1 . . . 4 1 1 4 1 . . . 4 . 1 3 2 5 5 . 8 Device 23 | 1 1 . . . 2 . . 3 . . . . 1 . . 2 . 4 4 . 5 Storage 3 | 1 . . . . 1 . . . . . . . 1 . . . . . . . . Processor 6 | . . . . . 1 1 . . . . . . . . . 1 . 1 . . 2 Hackware 7 | . . . . . . . 1 1 1 . . . . . 1 . 2 . . . 1 Protection 3 | . . . . . . . . . . . . . 2 . . . . . 1 . . Artifact . | . . . . . . . . . . . . . . . . . . . . . . Weapon 19 | 2 1 . . . 5 2 . . 2 . . . 1 . 2 2 . . 1 1 . Energy Gun 2 | 1 . . . . . . . . . . . . . . . . . . . 1 . Energy Cannon 1 | . . . . . . . . . . . . . . . 1 . . . . . . Ballistic Gun 7 | 1 . . . . 2 1 . . 1 . . . 1 . 1 . . . . . . Ballistic Cannon 3 | . 1 . . . 2 . . . . . . . . . . . . . . . . Launcher 1 | . . . . . 1 . . . . . . . . . . . . . . . . Special Weapon . | . . . . . . . . . . . . . . . . . . . . . . Impact Weapon 2 | . . . . . . 1 . . 1 . . . . . . . . . . . . Slashing Weapon 1 | . . . . . . . . . . . . . . . . 1 . . . . . Piercing Weapon 2 | . . . . . . . . . . . . . . . . 1 . . 1 . . Special Melee Weapon . | . . . . . . . . . . . . . . . . . . . . . . Unidentified Prototypes 21 | . . . . . . 1 . 1 3 . . . 3 . . 6 . 1 3 . 3 Parts Lost 36 | . . . . . 7 . . 1 . . . . . 1 9 . 2 . 2 . 14 Power 8 | . . . . . 2 . . . . . . . . . . . 2 . 1 . 3 Propulsion 9 | . . . . . 3 . . . . . . . . 1 2 . . . . . 3 Utility 14 | . . . . . 1 . . 1 . . . . . . 4 . . . 1 . 7 Weapon 5 | . . . . . 1 . . . . . . . . . 3 . . . . . 1 Highest Loss Streak 9 | . . . . . 2 . . 1 . . . . . 1 9 . 1 . 2 . 6 To Critical Strikes 1 | . . . . . . . . . . . . . . . . . . . . . 1 Average Backups 6 | 2 6 7 5 5 6 8 9 9 8 9 9 9 9 7 6 4 4 4 3 1 3 Power . | . 1 1 1 1 . . . . . 1 1 1 1 1 1 2 1 1 . . . Propulsion 2 | 1 3 3 3 3 3 3 4 3 . 1 1 1 1 1 . . . . 1 1 3 Utility 1 | . . 1 . . 1 1 2 3 3 4 4 4 4 3 2 1 1 1 . . . Weapon 1 | . 1 2 1 1 . 2 3 3 3 3 3 3 2 2 1 . 1 1 . . . Tool/Special . | . . . . . . . . . . . . . . . . . . . . . . Unused Backups 21 | . . 1 2 . 2 1 . 2 2 . . . 1 . 1 2 . 3 1 . 3 Power 2 | . . . . . . . . . . . . . . . . 1 . 1 . . . Propulsion 8 | . . 1 1 . 1 1 . 1 . . . . . . . . . . . . 3 Utility 8 | . . . . . . . . 1 2 . . . 1 . 1 . . 2 1 . . Weapon 2 | . . . 1 . 1 . . . . . . . . . . . . . . . . Tool/Special 1 | . . . . . . . . . . . . . . . . 1 . . . . . Average Slot Usage (%) 83 | . 99 100 100 100 91 74 74 74 79 80 80 80 75 74 47 45 88 86 82 79 76 Engine 6 | . 14 14 14 2 2 11 7 5 6 6 6 6 5 5 2 5 8 5 3 . . Core 3 | . . . . 11 6 2 5 9 6 6 6 6 5 5 2 . . . . . . Reactor 1 | . . . . . . . . . . . . . . . . . 2 5 4 8 6 Leg 13 | . 28 28 28 28 34 . . . . . . . . . . . . . . . . Flight 8 | . . . . . . 6 7 7 13 13 13 13 11 7 3 7 29 24 18 21 22 Device 11 | . 14 14 14 14 13 15 15 9 6 6 6 6 5 11 6 6 11 15 21 13 11 Storage 7 | . 14 14 14 14 14 7 7 7 6 6 6 6 5 5 2 . . . . . . Processor 3 | . . . . . 2 13 11 7 6 6 6 6 5 5 2 2 5 . . . 4 Hackware 10 | . . . . . . . 3 10 19 20 20 20 17 17 18 17 20 26 23 21 19 Protection 1 | . . . . . . . . . . . . . 4 1 . . 2 3 4 6 5 Ballistic Gun 6 | . 14 14 14 14 3 9 15 13 9 6 6 6 5 5 2 . . . . . . Ballistic Cannon 4 | . 12 14 14 14 8 1 . . . . . . . . . . . . . . . Impact Weapon 1 | . . . . . . 2 . 1 2 6 6 6 5 5 3 . . . . . . Piercing Weapon 1 | . . . . . . . . . . . . . . . . 2 5 5 4 4 4 Peak Build Rating 157 | 9 9 8 12 14 32 60 63 65 74 74 74 74 89 86 80 84 100 106 115 127 157 Average Rating 54 | 5 8 7 10 13 24 56 61 62 70 74 74 74 84 81 47 47 90 99 109 124 139 On Entrance 57 | . 9 8 8 12 14 32 60 63 63 74 74 74 74 86 79 11 84 100 104 102 127 Naked Turns . | . . . . . . . . . . . . . . . . . . . . . . Heaviest Build 58 | 15 16 16 16 16 36 45 42 43 36 36 36 36 58 52 45 18 28 37 43 51 56 Greatest Support 62 | 20 20 20 20 20 62 50 50 50 55 55 55 55 56 56 50 28 31 43 44 52 59 Greatest Overweight (x) 2 | . . . . . . . . . . . . . 1 . 2 1 . 1 . . . Average Overweight (x) . | . . . . . . . . . . . . . . . . . . . . . . Largest Inventory Capacity 10 | 8 8 8 8 8 10 10 10 10 10 10 10 10 10 10 10 5 5 5 5 5 5 Average Capacity 8 | 7 8 8 8 8 9 10 10 10 10 10 10 10 10 10 7 5 5 5 5 5 5 Most Carried 10 | 4 8 8 8 8 10 10 10 10 10 10 10 10 10 9 9 5 5 5 5 3 5 Average Carried 7 | 2 6 7 7 8 9 8 9 9 9 10 10 10 9 8 6 4 4 4 4 2 4 Final Capacity 10 | 8 8 8 8 8 10 10 10 10 10 10 10 10 10 10 5 5 5 5 5 5 5 Final Carried 10 | 4 8 8 8 8 10 10 9 10 10 10 10 10 8 9 5 5 5 5 4 3 3 Class Distribution -------------------- 34% | Mutant 24% | Hacker-Mutant 23% | Hacker-Sprinter 13% | Scavenger-Skirmisher Dominant Class ---------------- Mutant | -10/Materials Mutant | -10/Mines Mutant | -10/Exiles Scavenger-Skirmisher | -9/Mines Scavenger-Skirmisher | -8/Materials Mutant | -7/Factory Mutant | -7/Waste Hacker-Mutant | -7/Factory Hacker-Mutant | -6/Factory Hacker-Mutant | -6/Lower Caves Hacker-Mutant | -6/Data Miner Hacker-Mutant | -5/Proximity Caves Hacker-Mutant | -5/Factory Hacker-Mutant | -5/Upper Caves Hacker-Mutant | -5/Upper Caves Hacker-Sprinter | -5/Warlord Hacker-Sprinter | -4/Proximity Caves Hacker-Sprinter | -4/Factory Hacker-Sprinter | -3/Research Hacker-Sprinter | -2/Research Hacker-Sprinter | -1/Access Resources | -11 -10 -10 -10 -9 -8 -7 -7 -7 -6 -6 -6 -5 -5 -5 -5 -5 -4 -4 -3 -2 -1 ----------- Run | Yrd Mat Min Exi Min Mat Fac Was Fac Fac Low Dat Pro Fac Upp Upp War Pro Fac Res Res Acc Matter Collected 1927 | 253 272 . . 68 275 86 . 258 107 . . . 110 64 81 130 45 140 10 . 28 Remotely . | . . . . . . . . . . . . . . . . . . . . . . Salvage Created 1204 | 44 272 . . 73 176 86 . 258 107 . . . . . 57 . . 101 . . 30 Parts 77 | 4 28 . . 7 9 5 . 11 1 . . . . . 5 . . 7 . . . Haulers Intercepted 1 | . . . . . . . . . 1 . . . . . . . . . . . . Recyclers Shooed 2 | . 1 . . . 1 . . . . . . . . . . . . . . . . Parts Field Recycled . | . . . . . . . . . . . . . . . . . . . . . . Retrieved Matter . | . . . . . . . . . . . . . . . . . . . . . . Parts Self-Destructed 11 | . . . . . . . . . . . . . . . 11 . . . . . . Prevented . | . . . . . . . . . . . . . . . . . . . . . . Kills | -11 -10 -10 -10 -9 -8 -7 -7 -7 -6 -6 -6 -5 -5 -5 -5 -5 -4 -4 -3 -2 -1 ------- Run | Yrd Mat Min Exi Min Mat Fac Was Fac Fac Low Dat Pro Fac Upp Upp War Pro Fac Res Res Acc Combat Hostiles Destroyed 34 | . 13 . . 2 6 4 . 4 . . . . . . 2 . . 2 . . 1 Melee 3 | . . . . . . . . . . . . . . . . . . 2 . . 1 Guns 17 | . 6 . . 1 . 4 . 4 . . . . . . 2 . . . . . . Cannons 13 | . 7 . . 1 5 . . . . . . . . . . . . . . . . AOE 1 | . . . . . 1 . . . . . . . . . . . . . . . . Classes Destroyed 10 | 1 3 . . . 3 . . 2 1 . . . . . . . . . . . . Worker 1 | . 1 . . . . . . . . . . . . . . . . . . . . Tunneler 2 | 2 . . . . . . . . . . . . . . . . . . . . . Hauler 1 | . . . . . . . . . 1 . . . . . . . . . . . . Recycler 1 | . . . . . . . . 1 . . . . . . . . . . . . . Watcher 3 | . . . . . 1 1 . . . . . . . . . . . 1 . . . Swarmer 15 | . 8 . . . . 4 . . . . . . . . 2 . . . . . 1 Grunt 9 | . 5 . . 2 . . . 2 . . . . . . . . . . . . . Sentry 4 | . . . . . 3 . . 1 . . . . . . . . . . . . . Hunter 3 | . . . . . 3 . . . . . . . . . . . . . . . . Programmer 3 | . . . . . . . . 1 . . . . . . . . . 2 . . . Best Kill Streak 5 | 1 5 . . 2 2 5 . 2 1 . . . . . 2 . . 3 . . 1 Combat Bots Only 5 | . 5 . . 2 2 4 . 2 . . . . . . 2 . . 2 . . 1 Max Kills in Single Turn 2 | 1 1 . . 1 1 1 . 1 1 . . . . . 2 . . 1 . . 1 Gunslinging . | . . . . . . . . . . . . . . . . . . . . . . Exploded 1 | . . . . . 1 . . . . . . . . . . . . . . . . Melee 1 | . . . . . . . . . . . . . . . . . . 1 . . 1 Uniques/NPCs Destroyed . | . . . . . . . . . . . . . . . . . . . . . . Combat | -11 -10 -10 -10 -9 -8 -7 -7 -7 -6 -6 -6 -5 -5 -5 -5 -5 -4 -4 -3 -2 -1 -------- Run | Yrd Mat Min Exi Min Mat Fac Was Fac Fac Low Dat Pro Fac Upp Upp War Pro Fac Res Res Acc Hostile Shots Fired 890 | . 53 . . 5 61 15 3 78 . 2 . 57 20 35 178 . 18 28 24 2 311 Missed 472 | . 20 . . . 15 5 2 31 . 1 . 35 8 22 84 . 8 13 14 2 212 Hits 418 | . 33 . . 5 46 10 1 47 . 1 . 22 12 13 94 . 10 15 10 . 99 Melee 1 | . . . . . . . 1 . . . . . . . . . . . . . . Projectile 417 | . 33 . . 5 46 10 . 47 . 1 . 22 12 13 94 . 10 15 10 . 99 AOE 1 | . . . . . . . . 1 . . . . . . . . . . . . . Critical Strikes 11 | . . . . 1 1 . 1 . . . . 1 2 . 1 . . . 1 . 3 Damage Taken 6760 | . 348 . . 79 738 150 54 396 . 18 . 369 249 164 1489 22 196 286 165 . 2037 Core 1138 | . 51 . . . 121 30 . 52 . 18 . 44 . 14 463 . 66 62 17 . 200 Absorbed by Shields 163 | . . . . . . . . . . . . . . . . . . . 59 . 104 Ignored by Resistances 27 | . . . . . . . . . . . . . . . . . 27 . . . . Regen/Repaired (Parts) 226 | . . . . . . . . . . . . . . . . . . 210 16 . . Core Remaining (%) 86 | 100 . . . 79 78 . . 88 . . . 92 . . . . 45 94 98 100 87 Volleys Fired 120 | 4 30 . . 4 43 12 . 15 . . . . 3 . 8 . . . . . 1 Largest 2 | 2 2 . . 2 2 2 . 2 . . . . 1 . 1 . . . . . 1 Hottest 85 | 60 60 . . 50 69 53 . 53 . . . . 30 . 85 . . . . . 65 Shots Fired 182 | 8 60 . . 8 51 13 . 30 . . . . 3 . 8 . . . . . 1 Gun 100 | 8 31 . . 4 6 13 . 30 . . . . 3 . 4 . . . . . 1 Cannon 79 | . 29 . . 4 43 . . . . . . . . . 3 . . . . . . Launcher 3 | . . . . . 2 . . . . . . . . . 1 . . . . . . Special . | . . . . . . . . . . . . . . . . . . . . . . Kinetic 170 | 4 59 . . 8 49 13 . 30 . . . . 3 . 4 . . . . . . Thermal 4 | . . . . . . . . . . . . . . . 3 . . . . . 1 Explosive 3 | . . . . . 2 . . . . . . . . . 1 . . . . . . Electromagnetic 5 | 4 1 . . . . . . . . . . . . . . . . . . . . Robot Hit Streak 11 | 1 7 . . 4 11 7 . 9 . . . . 4 . 1 . . . . . . Robot Miss Streak 4 | 1 4 . . 1 2 3 . 4 . . . . . . 2 . . . . . . Penetration Max 1 | . . . . . . . . . . . . . . . 1 . . . . . . Secondary Targets . | . . . . . . . . . . . . . . . . . . . . . . Shots Hit Robots 135 | 4 34 . . 5 40 12 . 23 1 . . . 3 . 2 . . 9 . . 2 Core Hits 81 | 2 17 . . 3 13 16 . 23 1 . . . . . 3 . . 2 . . 1 Critical Kills 2 | . . . . . . . . . 1 . . . . . 1 . . . . . . Critical Parts Destroyed 1 | . . . . . . 1 . . . . . . . . . . . . . . . Critical Strikes 8 | . 1 . . . 4 1 . . 1 . . . . . 1 . . . . . . Destroy 1 | . . . . . . . . . . . . . . . 1 . . . . . . Blast 5 | . 1 . . . 4 . . . . . . . . . . . . . . . . Smash 2 | . . . . . . 1 . . 1 . . . . . . . . . . . . Melee Attacks 66 | . . . . . . 1 . 4 6 . . . 1 . . . . 23 7 . 24 Impact 12 | . . . . . . 1 . 4 6 . . . 1 . . . . . . . . Slashing . | . . . . . . . . . . . . . . . . . . . . . . Piercing . | . . . . . . . . . . . . . . . . . . . . . . Entropic 54 | . . . . . . . . . . . . . . . . . . 23 7 . 24 Sneak Attacks 1 | . . . . . . . . . 1 . . . . . . . . . . . . Combat Hostiles . | . . . . . . . . . . . . . . . . . . . . . . Follow-up Attacks . | . . . . . . . . . . . . . . . . . . . . . . Damage Inflicted 3414 | 51 516 . . 78 862 237 . 472 136 . . . 43 . 80 . . 774 . . 165 Guns 1082 | 51 237 . . 28 47 185 . 472 . . . . 43 . 19 . . . . . . Cannons 1048 | . 278 . . 50 659 . . . . . . . . . 61 . . . . . . Explosions 147 | . . . . . 147 . . . . . . . . . . . . . . . . Melee 1127 | . . . . . . 52 . . 136 . . . . . . . . 774 . . 165 Ramming 10 | . 1 . . . 9 . . . . . . . . . . . . . . . . Kinetic 2069 | 51 515 . . 78 706 185 . 472 . . . . 43 . 19 . . . . . . Thermal 61 | . . . . . . . . . . . . . . . 61 . . . . . . Explosive 147 | . . . . . 147 . . . . . . . . . . . . . . . . Electromagnetic . | . . . . . . . . . . . . . . . . . . . . . . Impact 188 | . . . . . . 52 . . 136 . . . . . . . . . . . . Slashing . | . . . . . . . . . . . . . . . . . . . . . . Piercing . | . . . . . . . . . . . . . . . . . . . . . . Entropic 939 | . . . . . . . . . . . . . . . . . . 774 . . 165 Highest Corruption 10 | . . . . . . . 10 10 . . . . . . . . . 1 . . . Average Corruption 5 | . . . . . . . 10 6 . . . . . . . . . 1 . . . Corruption Purged 5 | . . . . . . . . 5 . . . . . . . . . . . . . Corruption Blocked . | . . . . . . . . . . . . . . . . . . . . . . Effects 16 | . . . . . . . 2 11 . . . . . . . . . 3 . . . Message Errors 4 | . . . . . . . . 2 . . . . . . . . . 2 . . . Matter Fused 3 | . . . . . . . . 2 . . . . . . . . . 1 . . . Heat Flow Errors 2 | . . . . . . . . 2 . . . . . . . . . . . . . Energy Discharges 3 | . . . . . . . 1 2 . . . . . . . . . . . . . Data Loss (minor) 2 | . . . . . . . . 2 . . . . . . . . . . . . . Alerts 1 | . . . . . . . . 1 . . . . . . . . . . . . . Misdirections 1 | . . . . . . . 1 . . . . . . . . . . . . . . Overload Shots . | . . . . . . . . . . . . . . . . . . . . . . Overflow Damage 232 | . . . . . 3 52 . . . . . . . . . . . 177 . . . Projectiles . | . . . . . . . . . . . . . . . . . . . . . . Explosions 3 | . . . . . 3 . . . . . . . . . . . . . . . . Melee 229 | . . . . . . 52 . . . . . . . . . . . 177 . . . Knockbacks 12 | . 3 . . . 9 . . . . . . . . . . . . . . . . Impact . | . . . . . . . . . . . . . . . . . . . . . . Kinetic 12 | . 3 . . . 9 . . . . . . . . . . . . . . . . Secondary . | . . . . . . . . . . . . . . . . . . . . . . Self-Inflicted Damage 78 | . . . . . 41 . . . . . . . . . 37 . . . . . . Shots 2 | . . . . . 1 . . . . . . . . . 1 . . . . . . Rammed . | . . . . . . . . . . . . . . . . . . . . . . Targets Rammed 4 | . 1 . . . 3 . . . . . . . . . . . . . . . . Kicked 4 | . 1 . . . 3 . . . . . . . . . . . . . . . . Crushed . | . . . . . . . . . . . . . . . . . . . . . . Highest Temperature 520 | . 8 . . 31 19 27 . 127 218 . . 23 . . 12 6 241 520 . . 13 Average Temperature 87 | . 2 . . 23 3 8 . 43 109 . . 15 . . 7 3 103 128 . . 2 Received Heat Transfer 651 | . 90 . . 63 117 . . 96 . 9 . 54 . 9 18 . 9 63 6 . 117 Effects 15 | . . . . . . . . . . . . . . . . . . 15 . . . Shutdowns 5 | . . . . . . . . . . . . . . . . . . 5 . . . Energy Bleed 2 | . . . . . . . . . . . . . . . . . . 2 . . . Interference 5 | . . . . . . . . . . . . . . . . . . 5 . . . Short Circuit 1 | . . . . . . . . . . . . . . . . . . 1 . . . Damage (minor) 2 | . . . . . . . . . . . . . . . . . . 2 . . . Siege Activations . | . . . . . . . . . . . . . . . . . . . . . . Martial Activations . | . . . . . . . . . . . . . . . . . . . . . . Shielding Activations . | . . . . . . . . . . . . . . . . . . . . . . Robots Disrupted . | . . . . . . . . . . . . . . . . . . . . . . Combat Hostiles . | . . . . . . . . . . . . . . . . . . . . . . Robots Corrupted 1 | . . . . . . 1 . . . . . . . . . . . . . . . Combat Hostiles . | . . . . . . . . . . . . . . . . . . . . . . Parts Fried 1 | . . . . . . 1 . . . . . . . . . . . . . . . Impact Corruptions 2 | . . . . . . 2 . . . . . . . . . . . . . . . Robots Melted . | . . . . . . . . . . . . . . . . . . . . . . Combat Hostiles . | . . . . . . . . . . . . . . . . . . . . . . Parts Melted . | . . . . . . . . . . . . . . . . . . . . . . Heat Transferred 74 | . . . . . . . . . . . . . . . 74 . . . . . . Parts Sabotaged . | . . . . . . . . . . . . . . . . . . . . . . Parts Stolen . | . . . . . . . . . . . . . . . . . . . . . . Parts Stripped . | . . . . . . . . . . . . . . . . . . . . . . Power Chain Reactions . | . . . . . . . . . . . . . . . . . . . . . . Alert | -11 -10 -10 -10 -9 -8 -7 -7 -7 -6 -6 -6 -5 -5 -5 -5 -5 -4 -4 -3 -2 -1 ------- Run | Yrd Mat Min Exi Min Mat Fac Was Fac Fac Low Dat Pro Fac Upp Upp War Pro Fac Res Res Acc Maximum Alert Level 3 | . . . . . . . . . . . . . . . . . . . . . 3 Low Security (%) 95 | 100 100 100 . 100 100 100 100 100 100 . . . 100 . . . . 100 100 100 51 Level 1 . | . . . . . . . . . . . . . . . . . . . . . 3 Level 2 2 | . . . . . . . . . . . . . . . . . . . . . 26 Level 3 1 | . . . . . . . . . . . . . . . . . . . . . 18 Level 4 . | . . . . . . . . . . . . . . . . . . . . . . Level 5 . | . . . . . . . . . . . . . . . . . . . . . . High Security . | . . . . . . . . . . . . . . . . . . . . . . Max Security . | . . . . . . . . . . . . . . . . . . . . . . Peak Influence 944 | 5 178 71 . 50 52 87 9 93 33 . . . 98 . . . . 112 43 26 944 Initial 91 | . . 66 . . . . 9 . 33 . . . 91 . . . . 72 13 8 9 Average 53 | . 92 13 . 15 10 26 3 17 7 . . . 48 . . . . 48 7 12 315 Influence Increases 3553 | 10 318 5 . 50 253 102 . 208 27 45 . 165 189 60 235 . 135 258 101 18 1374 Destroy 0b10 Robot/C 680 | . 260 . . 40 120 80 . 80 . . . . . . 40 . . 40 . . 20 Destroy 0b10 Robot/NC 40 | 10 5 . . . 5 5 . 5 5 . . . . . . . . 5 . . . Destroy Leader 188 | . 50 . . 10 62 12 . 30 2 . . . . . . . . 12 . . 10 Successful Hack 276 | . . 5 . . 18 5 . 30 15 . . . 52 . . . . 40 57 18 36 Disable Machine 75 | . . . . . 15 . . . . . . . . . . . . 15 . . 45 Destroy Structure 104 | . 3 . . . 18 . . 3 5 . . . 2 . . . . 26 14 . 33 Partial Spotted 165 | . . . . . . . . 15 . . . . 15 . . . . 45 . . 90 Lose Combat Pursuer 2025 | . . . . . 15 . . 45 . 45 . 165 120 60 195 . 135 75 30 . 1140 Influence Decreases 2641 | 10 148 175 . 50 253 75 27 139 96 45 . 20 282 107 75 165 20 346 113 17 478 Entered New Map 470 | . . 104 . . . . 18 . 36 . . . 54 20 2 165 . 43 14 7 7 Time Decay 1744 | 10 148 71 . 50 214 75 9 134 60 45 . 20 228 77 43 . 20 293 66 10 171 Search Patrol Dispatched 150 | . . . . . . . . . . . . . . . . . . . . . 150 Lost Part 223 | . . . . . 39 . . . . . . . . 10 30 . . . 4 . 140 Lost Ally 30 | . . . . . . . . 5 . . . . . . . . . 10 5 . 10 Purge Threat 24 | . . . . . . . . . . . . . . . . . . . 24 . . Squads Dispatched 26 | . 2 . . . 2 2 . 6 1 . . . 3 . . . . 3 4 . 3 Investigation 7 | . 1 . . . 1 2 . 2 . . . . . . . . . . 1 . . Extermination 8 | . . . . . . . . 1 1 . . . 1 . . . . 2 1 . 2 Reinforcement 8 | . 1 . . . 1 . . . . . . . 2 . . . . 1 2 . 1 Assault . | . . . . . . . . . . . . . . . . . . . . . . Garrison 3 | . . . . . . . . 3 . . . . . . . . . . . . . Intercept . | . . . . . . . . . . . . . . . . . . . . . . Searches Triggered 1 | . . . . . . . . . . . . . . . . . . . . . 1 Construction Impeded . | . . . . . . . . . . . . . . . . . . . . . . Haulers Reinforced . | . . . . . . . . . . . . . . . . . . . . . . Active Scanning Responses . | . . . . . . . . . . . . . . . . . . . . . . Cargo Convoy Interrupts . | . . . . . . . . . . . . . . . . . . . . . . Stealth | -11 -10 -10 -10 -9 -8 -7 -7 -7 -6 -6 -6 -5 -5 -5 -5 -5 -4 -4 -3 -2 -1 --------- Run | Yrd Mat Min Exi Min Mat Fac Was Fac Fac Low Dat Pro Fac Upp Upp War Pro Fac Res Res Acc Distress Signals 11 | . 1 . . . 1 . . . . . . . 1 . . 1 . 3 3 . 1 Communications Jammed . | . . . . . . . . . . . . . . . . . . . . . . Distress Signals . | . . . . . . . . . . . . . . . . . . . . . . Times Spotted 274 | . 23 . . 1 13 5 6 8 . 3 . 13 13 9 18 6 11 27 15 1 102 Peak Tracking Total 22 | . 7 . . 1 3 4 6 5 . 3 . 10 5 4 13 5 11 5 6 2 22 Tactical Retreats 51 | . . . . . 1 . . 3 . 1 . 3 5 3 4 . 2 7 6 . 16 Traps | -11 -10 -10 -10 -9 -8 -7 -7 -7 -6 -6 -6 -5 -5 -5 -5 -5 -4 -4 -3 -2 -1 ------- Run | Yrd Mat Min Exi Min Mat Fac Was Fac Fac Low Dat Pro Fac Upp Upp War Pro Fac Res Res Acc Traps Triggered 8 | . 2 . . . 1 2 . 1 . . . . . . . . . 1 1 . . Indirectly . | . . . . . . . . . . . . . . . . . . . . . . Trap Hack Attempts . | . . . . . . . . . . . . . . . . . . . . . . Triggered . | . . . . . . . . . . . . . . . . . . . . . . Disarmed . | . . . . . . . . . . . . . . . . . . . . . . Reprogrammed 6 | . . . . . . . . . . . . . 6 . . . . . . . . Reused . | . . . . . . . . . . . . . . . . . . . . . . Traps Extracted . | . . . . . . . . . . . . . . . . . . . . . . Installed . | . . . . . . . . . . . . . . . . . . . . . . Triggered . | . . . . . . . . . . . . . . . . . . . . . . Machines | -11 -10 -10 -10 -9 -8 -7 -7 -7 -6 -6 -6 -5 -5 -5 -5 -5 -4 -4 -3 -2 -1 ---------- Run | Yrd Mat Min Exi Min Mat Fac Was Fac Fac Low Dat Pro Fac Upp Upp War Pro Fac Res Res Acc Machines Disabled 5 | . . . . . 1 . . . . . . . . . . . . 1 . . 3 Max in Single Turn 1 | . . . . . 1 . . . . . . . . . . . . 1 . . 1 Garrison Access 2 | . . . . . . . . . . . . . 1 . . . . 1 . . . Machines Repaired . | . . . . . . . . . . . . . . . . . . . . . . Machines Dismantled . | . . . . . . . . . . . . . . . . . . . . . . Machines Sabotaged . | . . . . . . . . . . . . . . . . . . . . . . Overloaded Fab Kills . | . . . . . . . . . . . . . . . . . . . . . . Hacking | -11 -10 -10 -10 -9 -8 -7 -7 -7 -6 -6 -6 -5 -5 -5 -5 -5 -4 -4 -3 -2 -1 --------- Run | Yrd Mat Min Exi Min Mat Fac Was Fac Fac Low Dat Pro Fac Upp Upp War Pro Fac Res Res Acc Machines Accessed 79 | . 2 1 4 . 5 5 . 6 7 . 4 . 11 1 . 3 . 16 7 1 6 Terminals 50 | . 2 1 . . 5 5 . 5 4 . . . 7 1 . . . 9 6 . 5 Fabricators 4 | . . . . . . . . . . . . . 1 . . . . 2 . 1 . Repair Stations 6 | . . . . . . . . 1 1 . . . . . . . . 3 1 . . Recycling Units 2 | . . . . . . . . . 1 . . . . . . . . . . . 1 Scanalyzers 4 | . . . . . . . . . 1 . . . 2 . . . . 1 . . . Garrison Access 2 | . . . . . . . . . . . . . 1 . . . . 1 . . . Total Hacks 344 | . 6 6 49 . 16 10 . 15 48 . 27 . 45 1 . 7 . 60 36 3 15 Successful 203 | . 2 2 49 . 5 4 . 9 25 . 27 . 15 1 . 7 . 34 17 3 3 Failed 140 | . 4 4 . . 10 6 . 6 23 . . . 30 . . . . 26 19 . 12 Catastrophic 17 | . . . . . 1 1 . 2 2 . . . 4 . . . . 2 . . 5 Database Lockouts 1 | . . . . . 1 . . . . . . . . . . . . . . . . Manual 150 | . 2 3 1 . 12 5 . 7 31 . . . 22 . . 2 . 27 23 2 13 Terminals 208 | . 6 6 . . 16 10 . 13 37 . . . 31 1 . . . 40 34 . 14 Fabricators 12 | . . . . . . . . . . . . . 3 . . . . 6 . 3 . Repair Stations 18 | . . . . . . . . 2 3 . . . . . . . . 11 2 . . Recycling Units 7 | . . . . . . . . . 6 . . . . . . . . . . . 1 Scanalyzers 8 | . . . . . . . . . 2 . . . 5 . . . . 1 . . . Garrison Access 8 | . . . . . . . . . . . . . 6 . . . . 2 . . . Terminal Hacks 147 | . . 1 49 . 2 2 . 6 15 . 27 . 8 1 . 7 . 16 12 . 1 Record 66 | . . . 49 . . . . . . . 11 . 2 1 . 2 . . 1 . . Part Schematic 9 | . . . . . . . . . . . 9 . . . . . . . . . . Robot Schematic 4 | . . . . . . . . . . . 4 . . . . . . . . . . Robot Analysis 7 | . . . . . 1 . . . 4 . . . . . . . . 1 1 . . Prototype ID Bank 13 | . . . . . 1 . . . 1 . 3 . 1 . . 4 . 2 1 . . Open Door 1 | . . . . . . . . . . . . . . . . 1 . . . . . Open DSF 3 | . . . . . . 1 . 1 . . . . . . . . . 1 . . . Level Access Points 4 | . . . . . . . . . 1 . . . 1 . . . . 1 1 . . Branch Access Points 4 | . . . . . . . . . 1 . . . 1 . . . . 1 1 . . Terminal Index 5 | . . . . . . 1 . 1 1 . . . . . . . . 1 1 . . Fabricator Index 1 | . . . . . . . . . 1 . . . . . . . . . . . . Repair Station Index 1 | . . . . . . . . . . . . . . . . . . 1 . . . Recycling Unit Index 2 | . . . . . . . . 1 1 . . . . . . . . . . . . Alert Level 4 | . . . . . . . . 1 . . . . . . . . . 3 . . . Unreport Threat 1 | . . . . . . . . . . . . . . . . . . . 1 . . Locate Traps 8 | . . . . . . . . 1 3 . . . 2 . . . . 1 . . 1 Reprogram Traps 1 | . . . . . . . . . . . . . 1 . . . . . . . . Dispatch Records 1 | . . . . . . . . . . . . . . . . . . . 1 . . Investigation Status 1 | . . . . . . . . . 1 . . . . . . . . . . . . Recall Investigation 2 | . . . . . . . . 1 . . . . . . . . . . 1 . . Recall Reinforcements 2 | . . . . . . . . . . . . . . . . . . . 2 . . Hauler Manifests 1 | . . . . . . . . . . . . . . . . . . 1 . . . Registered Components 2 | . . . . . . . . . 1 . . . . . . . . 1 . . . Registered Prototypes 1 | . . . . . . . . . . . . . . . . . . 1 . . . Zone Layout 3 | . . 1 . . . . . . . . . . . . . . . 1 1 . . Fabricator Hacks 3 | . . . . . . . . . . . . . 1 . . . . 1 . 1 . Network Status 3 | . . . . . . . . . . . . . 1 . . . . 1 . 1 . Repair Station Hacks 12 | . . . . . . . . 1 2 . . . . . . . . 7 2 . . Scan Component 7 | . . . . . . . . 1 1 . . . . . . . . 4 1 . . Repair 5 | . . . . . . . . . 1 . . . . . . . . 3 1 . . Recycling Unit Hacks 1 | . . . . . . . . . 1 . . . . . . . . . . . . Report Inventory 1 | . . . . . . . . . 1 . . . . . . . . . . . . Scanalyzer 3 | . . . . . . . . . 2 . . . 1 . . . . . . . . Insert Component 2 | . . . . . . . . . 1 . . . 1 . . . . . . . . Analyze 1 | . . . . . . . . . 1 . . . . . . . . . . . . Garrison Access Hacks 2 | . . . . . . . . . . . . . 1 . . . . 1 . . . Seal Access 2 | . . . . . . . . . . . . . 1 . . . . 1 . . . Unauthorized Hacks 34 | . 2 1 . . 3 2 . 2 4 . . . 4 . . . . 9 3 2 2 Terminals 28 | . 2 1 . . 3 2 . 2 4 . . . 3 . . . . 6 3 . 2 Assimilate 6 | . . . . . . . . 1 . . . . 1 . . . . 2 1 . 1 Botnet 21 | . 2 1 . . 3 2 . 1 4 . . . 2 . . . . 4 2 . . Detonate 1 | . . . . . . . . . . . . . . . . . . . . . 1 Fabricators 5 | . . . . . . . . . . . . . 1 . . . . 2 . 2 . Report 1 | . . . . . . . . . . . . . . . . . . . . 1 . Fabnet 1 | . . . . . . . . . . . . . . . . . . 1 . . . Haulers 3 | . . . . . . . . . . . . . 1 . . . . 1 . 1 . Repair Stations . | . . . . . . . . . . . . . . . . . . . . . . Recycling Units . | . . . . . . . . . . . . . . . . . . . . . . Scanalyzers 1 | . . . . . . . . . . . . . . . . . . 1 . . . Researchers 1 | . . . . . . . . . . . . . . . . . . 1 . . . Garrison Access . | . . . . . . . . . . . . . . . . . . . . . . Data Cores Recovered . | . . . . . . . . . . . . . . . . . . . . . . Used . | . . . . . . . . . . . . . . . . . . . . . . Hacking Detections 56 | . 2 1 . . 4 4 . 5 6 . . . 10 . . . . 10 7 1 6 Full Trace Events 2 | . . . . . . 1 . 1 . . . . . . . . . . . . . Feedback Events . | . . . . . . . . . . . . . . . . . . . . . . Feedback Blocked . | . . . . . . . . . . . . . . . . . . . . . . Robot Schematics Acquired 4 | . . . . . . . . . . . 4 . . . . . . . . . . Robots Built . | . . . . . . . . . . . . . . . . . . . . . . Authchips . | . . . . . . . . . . . . . . . . . . . . . . Time . | . . . . . . . . . . . . . . . . . . . . . . Total Robot Build Rating . | . . . . . . . . . . . . . . . . . . . . . . Part Schematics Acquired 10 | . . . . . . . . . 1 . 9 . . . . . . . . . . Parts Built . | . . . . . . . . . . . . . . . . . . . . . . Authchips . | . . . . . . . . . . . . . . . . . . . . . . Time . | . . . . . . . . . . . . . . . . . . . . . . Total Part Build Rating . | . . . . . . . . . . . . . . . . . . . . . . Parts Repaired 4 | . . . . . . . . . 1 . . . . . . . . 2 1 . . Time 227 | . . . . . . . . . 20 . . . . . . . . 189 18 . . Parts Recycled . | . . . . . . . . . . . . . . . . . . . . . . Recycled Matter . | . . . . . . . . . . . . . . . . . . . . . . Retrieved Matter . | . . . . . . . . . . . . . . . . . . . . . . Retrieved Components . | . . . . . . . . . . . . . . . . . . . . . . Parts Scanalyzed 2 | . . . . . . . . . 1 . . . 1 . . . . . . . . Part Schematics Acquired 1 | . . . . . . . . . 1 . . . . . . . . . . . . Parts Damaged 1 | . . . . . . . . . 1 . . . . . . . . . . . . Bothacking | -11 -10 -10 -10 -9 -8 -7 -7 -7 -6 -6 -6 -5 -5 -5 -5 -5 -4 -4 -3 -2 -1 ------------ Run | Yrd Mat Min Exi Min Mat Fac Was Fac Fac Low Dat Pro Fac Upp Upp War Pro Fac Res Res Acc Used RIF Installer . | . . . . . . . . . . . . . . . . . . . . . . Robots Hacked . | . . . . . . . . . . . . . . . . . . . . . . Non-combat . | . . . . . . . . . . . . . . . . . . . . . . Combat . | . . . . . . . . . . . . . . . . . . . . . . Robot Hacks Applied . | . . . . . . . . . . . . . . . . . . . . . . Relay Couplers Released . | . . . . . . . . . . . . . . . . . . . . . . Fabnet Peak Effective % 3 | . . . . . . . . . . . . . . . . . . . 3 1 . Robots Rewired . | . . . . . . . . . . . . . . . . . . . . . . Allies Hacked . | . . . . . . . . . . . . . . . . . . . . . . Hacks Repelled . | . . . . . . . . . . . . . . . . . . . . . . Allies | -11 -10 -10 -10 -9 -8 -7 -7 -7 -6 -6 -6 -5 -5 -5 -5 -5 -4 -4 -3 -2 -1 -------- Run | Yrd Mat Min Exi Min Mat Fac Was Fac Fac Low Dat Pro Fac Upp Upp War Pro Fac Res Res Acc Total Allies 5 | . . . . . . . . 1 . . . . 1 . . . . 1 1 . 1 Largest Group 1 | . . . . . . . . 1 . . . . 1 . . . . 1 1 . 1 Highest-Rated Group 45 | . . . . . . . . 10 . . . . 26 . . . . 10 26 . 45 Highest-Rated Ally 45 | . . . . . . . . 10 . . . . 26 . . . . 10 26 . 45 Total Orders . | . . . . . . . . . . . . . . . . . . . . . . Ally Attacks . | . . . . . . . . . . . . . . . . . . . . . . Total Damage . | . . . . . . . . . . . . . . . . . . . . . . Kills . | . . . . . . . . . . . . . . . . . . . . . . Allies Corrupted 1 | . . . . . . . . . . . . . 1 . . . . . . . . Allies Melted 1 | . . . . . . . . . . 1 . . . . . . . . . . . Intel | -11 -10 -10 -10 -9 -8 -7 -7 -7 -6 -6 -6 -5 -5 -5 -5 -5 -4 -4 -3 -2 -1 ------- Run | Yrd Mat Min Exi Min Mat Fac Was Fac Fac Low Dat Pro Fac Upp Upp War Pro Fac Res Res Acc Active Infowar (turns) 6219 | 21 411 431 727 176 1077 . . 333 245 127 39 147 576 203 102 2 44 649 319 29 561 Optics 549 | . . . . . . . . . . . . . . . . . . . . . 549 Sensors 804 | . 229 431 144 . . . . . . . . . . . . . . . . . . Terrain 2039 | 21 182 . 583 176 1077 . . . . . . . . . . . . . . . . Seismic 2774 | . . . . . . . . 332 245 127 39 147 576 203 102 . . 604 319 29 51 Cloaking 726 | . . . . . . . . . . . . . . . . 2 44 517 163 . . ECM 154 | . . . . . . . . 1 . . . . . . . . . 81 72 . . Robot Analysis Total 7 | . . . . . 1 . . . 4 . . . . . . . . 1 1 . . Derelict Logs Recovered 8 | . . 1 . . . . . . . 1 . 1 . 1 1 . 3 . . . . Drone Launches . | . . . . . . . . . . . . . . . . . . . . . . Drone Recoveries . | . . . . . . . . . . . . . . . . . . . . . . Exploration | -11 -10 -10 -10 -9 -8 -7 -7 -7 -6 -6 -6 -5 -5 -5 -5 -5 -4 -4 -3 -2 -1 ------------- Run | Yrd Mat Min Exi Min Mat Fac Was Fac Fac Low Dat Pro Fac Upp Upp War Pro Fac Res Res Acc Turns Passed 7978 | 139 416 431 728 176 1638 294 53 497 245 127 39 147 577 203 189 382 82 706 319 29 561 Spaces Moved 10431 | 98 259 355 603 93 811 457 99 574 455 301 92 312 1013 359 327 762 290 1319 551 86 1215 Core 421 | 6 . . . . . . . . . . . . . . 117 298 . . . . . Treads . | . . . . . . . . . . . . . . . . . . . . . . Legs 2213 | 92 259 355 603 93 811 . . . . . . . . . . . . . . . . Wheels . | . . . . . . . . . . . . . . . . . . . . . . Hover . | . . . . . . . . . . . . . . . . . . . . . . Flight 7797 | . . . . . . 457 99 574 455 301 92 312 1013 359 210 464 290 1319 551 86 1215 Fastest Speed 21 | 50 120 120 120 120 120 50 50 50 42 42 42 42 42 42 40 23 23 21 29 27 22 Average Speed 55 | 115 120 120 120 120 121 50 50 50 42 42 42 42 46 46 49 38 23 26 30 27 25 Slowest Speed 150 | 120 120 120 120 120 123 50 50 50 42 42 42 42 132 50 150 92 25 107 31 27 40 Overloaded Moves . | . . . . . . . . . . . . . . . . . . . . . . Propulsion Burnouts . | . . . . . . . . . . . . . . . . . . . . . . Robots Hopped 44 | . . . . . . 3 . 3 1 . . . 7 2 6 . . 11 . . 11 Potential Cave-ins . | . . . . . . . . . . . . . . . . . . . . . . Cave-ins Triggered . | . . . . . . . . . . . . . . . . . . . . . . Exploration Rate (%) 44 | 5 53 75 91 20 41 12 85 17 11 58 72 54 36 55 72 87 57 34 16 3 31 Regions Visited 21 Branch Regions 10 Pre-discovered Areas 3 | . . 1 1 . . . . . . . 1 . . . . . . . . . . Known Exits Taken 7 | . . . . . . . . . 1 . . 1 1 1 . . 1 1 1 . . Unknown Exits Taken 12 | 1 1 1 1 1 1 . . 1 . 1 1 . . . 1 1 . . . 1 . Scrap Searched 8 | . . 1 . . . . . . . 1 . . . 1 2 . 3 . . . . Spaces Dug 40 | . . . . . . . . 3 5 . . . 1 . . . . 13 7 . 11 Terrain Destroyed 68 | . . . . . 16 . . 3 5 . . . 1 . 12 . . 13 7 . 11 Melee 40 | . . . . . . . . 3 5 . . . 1 . . . . 13 7 . 11 Projectile 1 | . . . . . . . . . . . . . . . 1 . . . . . . AOE 27 | . . . . . 16 . . . . . . . . . 11 . . . . . . Terrain Rammed . | . . . . . . . . . . . . . . . . . . . . . . Walls Destroyed . | . . . . . . . . . . . . . . . . . . . . . . Machines Disabled . | . . . . . . . . . . . . . . . . . . . . . . Actions | -11 -10 -10 -10 -9 -8 -7 -7 -7 -6 -6 -6 -5 -5 -5 -5 -5 -4 -4 -3 -2 -1 --------- Run | Yrd Mat Min Exi Min Mat Fac Was Fac Fac Low Dat Pro Fac Upp Upp War Pro Fac Res Res Acc Total 12351 | 112 304 361 609 151 1411 507 101 746 498 300 91 327 1103 391 342 845 300 1638 696 90 1428 Wait 1482 | . 7 3 . 49 514 20 . 139 20 . . 16 70 34 . 60 5 252 115 . 178 Move 10327 | 97 258 354 602 92 810 452 98 567 452 300 91 311 998 354 317 761 289 1297 550 85 1192 Hop 39 | . . . . . . 2 . 3 1 . . . 7 2 3 . . 10 . . 11 Pick Up 50 | 4 1 2 1 . 10 3 . 3 6 . . . 5 . 1 4 . 5 2 . 3 Fast Attach 77 | 7 2 . . . 10 2 1 5 2 . . . 3 . 1 11 2 10 8 2 11 Attach 37 | . . . 1 . 7 3 1 . 3 . . . 3 . 4 2 2 4 3 2 2 Detach 24 | . 2 . . . 3 2 1 . 1 . . . . 1 2 2 1 5 2 1 1 Swap 26 | . 2 . . 3 2 4 . 4 1 . . . 4 . 1 . 1 2 1 . 1 Drop 80 | . 1 2 4 3 9 6 . 6 6 . . . 9 . 5 5 . 12 8 . 4 Fire 120 | 4 30 . . 4 43 12 . 15 . . . . 3 . 8 . . . . . 1 Melee 66 | . . . . . . 1 . 4 6 . . . 1 . . . . 23 7 . 24 Ram . | . . . . . . . . . . . . . . . . . . . . . . Kick 4 | . 1 . . . 3 . . . . . . . . . . . . . . . . Crush . | . . . . . . . . . . . . . . . . . . . . . . Escape Stasis 18 | . . . . . . . . . . . . . . . . . . 18 . . . Rewire 1 | . . . 1 . . . . . . . . . . . . . . . . . . Trap . | . . . . . . . . . . . . . . . . . . . . . . Miscellaneous . | . . . . . . . . . . . . . . . . . . . . . . Route ------- -11/Scrapyard -10/Materials (discovered 3 exits: [*Mat] / *Min x2) -10/Mines (discovered 2 exits: [*Mat] / *Exi) -10/Exiles (discovered 2 exits: [*Min x2]) -9/Mines -8/Materials -7/Factory -7/Waste -7/Factory (discovered 2 exits: *Fac / [*Sto]) -6/Factory (discovered 8 exits: Fac x4 / *Low x2 / Ext x2) -6/Lower Caves (discovered 2 exits: [*Low] / *Dat) -6/Data Miner -5/Proximity Caves -5/Factory (discovered 6 exits: *Fac x4 / *Upp x2) -5/Upper Caves -5/Upper Caves -5/Warlord -4/Proximity Caves -4/Factory (discovered 6 exits: *Res x4 / *Upp x2) -3/Research (discovered 6 exits: *Res x3 / Arm / Qua x2) -2/Research -1/Access To Epsilon Eridani History --------- Turn | Location | Event 4 | -11/Scrapyard | Discovered new exit (range 14) 140 | -11/Scrapyard | Entered Materials 243 | -10/Materials | Discovered new exit (range 9) 308 | -10/Materials | Build established: Mutant 353 | -10/Materials | Discovered new exit (range 9) 406 | -10/Materials | Discovered new exit (range 9) 556 | -10/Materials | Entered Mines 571 | -10/Mines | Found a hidden stash of uninstalled traps 632 | -10/Mines | YI-UF0 nonchalantly dropped a Grenade Launcher on the ground 950 | -10/Mines | Discovered new exit (range 9) 980 | -10/Mines | Deemed a non-threat by the Exiles lab entrance 981 | -10/Mines | Discovered new exit (range 5) 987 | -10/Mines | Entered Exiles 1004 | -10/Exiles | Discovered new exit (range 15) 1016 | -10/Exiles | Met 8R-AWN 1038 | -10/Exiles | Met EX-HEX 1110 | -10/Exiles | Met EX-BIN 1128 | -10/Exiles | Aligned with FarCom system 1129 | -10/Exiles | Given EX-Vault access code 1186 | -10/Exiles | Opened EX-Vault 1195 | -10/Exiles | Found Prototype Flight Unit 1219 | -10/Exiles | Warned to stay clear of 0b10 Research branches 1256 | -10/Exiles | Met EX-DEC 1270 | -10/Exiles | Learned location of Zion (-7) 1333 | -10/Exiles | Discovered new exit (range 10) 1421 | -10/Exiles | Visited The Gauntlet 1715 | -10/Exiles | Left Exiles lab with Flying Fortress v7 1715 | -10/Exiles | Entered Mines 1725 | -9/Mines | Met a Derelict bent on vengeance 1830 | -9/Mines | Discovered new exit (range 10) 1891 | -9/Mines | Entered Materials 1891 | -8/Materials | Evolved 4 slots: Propulsion x2, Utility x2 2036 | -8/Materials | Build established: Scavenger-Skirmisher 3183 | -8/Materials | Discovered new exit (range 16) 3372 | -8/Materials | Build established: Mutant 3385 | -8/Materials | Central database locked down 3529 | -8/Materials | Entered Factory 3529 | -7/Factory | Evolved 2 slots: Power x1, Utility x1 3531 | -7/Factory | Identified Flying Fortress v7 3823 | -7/Factory | Sucked down chute 3823 | -7/Factory | Entered Waste 3836 | -7/Waste | Spotted C-40 Crusher 3838 | -7/Waste | EMP discharged 3838 | -7/Waste | System corruption reached 10% 3838 | -7/Waste | Spotted C-40 Crusher 3838 | -7/Waste | Spotted C-40 Crusher 3845 | -7/Waste | Spotted C-40 Crusher 3851 | -7/Waste | Spotted C-40 Crusher 3851 | -7/Waste | Spotted C-40 Crusher 3862 | -7/Waste | Crushed by Compactor (0 parts destroyed, 1 dropped) 3867 | -7/Waste | Discovered new exit (range 16) 3876 | -7/Waste | Entered Factory 3910 | -7/Factory | Identified exit to DSF 4092 | -7/Factory | Garrison activated, responded to threat 4225 | -7/Factory | Discovered new exit (range 9) 4362 | -7/Factory | Discovered new exit (range 5) 4373 | -7/Factory | Entered another Factory area 4373 | -6/Factory | Evolved 2 slots: Propulsion x1, Utility x1 4436 | -6/Factory | Build established: Hacker-Mutant 4450 | -6/Factory | Identified exit to Lower Caves 4450 | -6/Factory | Identified exit to Extension 4450 | -6/Factory | Identified exit to Factory 4491 | -6/Factory | Found Hvy. Reflective Plating 4560 | -6/Factory | Repaired Broken Xenon Bombardment Thruster 4618 | -6/Factory | Entered Lower Caves 4684 | -6/Lower Caves | Learned location of 1 exit from Proximity Caves 4739 | -6/Lower Caves | Discovered new exit (range 13) 4743 | -6/Lower Caves | A Derelict revealed a hidden shortcut to meet someone special 4745 | -6/Lower Caves | Entered Data Miner 4745 | -6/Data Miner | Discovered new exit (range 6) 4753 | -6/Data Miner | Met Data Miner 4764 | -6/Data Miner | Learned location of Section 7 (-2) 4764 | -6/Data Miner | Acquired the access code to Warlord's prototype stash 4771 | -6/Data Miner | Received God Mode back door access code from Data Miner 4784 | -6/Data Miner | Entered Proximity Caves 4877 | -5/Proximity Caves | Learned 8 Factory zone layouts 4879 | -5/Proximity Caves | Spotted B-75 Beast 4931 | -5/Proximity Caves | Entered Factory 4931 | -5/Factory | Evolved 2 slots: Utility x2 4932 | -5/Factory | Identified exit to Factory 5366 | -5/Factory | Discovered exit to Factory (range 9) 5377 | -5/Factory | Identified exit to Upper Caves 5508 | -5/Factory | Entered Upper Caves 5576 | -5/Upper Caves | Spotted B-75 Beast 5605 | -5/Upper Caves | Identified exit to Upper Caves 5606 | -5/Upper Caves | Attracted the attention of an 0b10 checkpoint 5711 | -5/Upper Caves | Entered another Upper Caves area 5772 | -5/Upper Caves | Spotted B-75 Beast 5775 | -5/Upper Caves | Attracted the attention of an 0b10 checkpoint 5780 | -5/Upper Caves | Learned 4 Factory zone layouts 5869 | -5/Upper Caves | Lost 9 parts (2n4u3w) 5897 | -5/Upper Caves | Discovered new exit (range 7) 5898 | -5/Upper Caves | Encountered a Warlord checkpoint 5900 | -5/Upper Caves | Entered Warlord 5962 | -5/Warlord | Met Warlord 5987 | -5/Warlord | Warlord's base attacked by MAIN.C 6049 | -5/Warlord | Opened Warlord's prototype stash 6056 | -5/Warlord | Found Prototype Processor 6056 | -5/Warlord | Identified Exp. Armor Integrity Analyzer 6059 | -5/Warlord | Found Prototype Reactor 6059 | -5/Warlord | Identified Vortex Chain Reactor 6061 | -5/Warlord | Found Prototype Device 6061 | -5/Warlord | Identified Exp. Cloaking Device 6064 | -5/Warlord | Found Prototype Device 6064 | -5/Warlord | Identified Exp. Focal Shield 6093 | -5/Warlord | Found Prototype Piercing Weapon 6093 | -5/Warlord | Identified Vortex Lance 6095 | -5/Warlord | Found Vortex Lance 6187 | -5/Warlord | Warlord forces counterattacked 6279 | -5/Warlord | Lost 8 allies 6280 | -5/Warlord | Discovered new exit (range 13) 6282 | -5/Warlord | Entered Proximity Caves 6322 | -4/Proximity Caves | Spotted B-86 Titan 6323 | -4/Proximity Caves | Core integrity fell below 50% 6331 | -4/Proximity Caves | Learned location of 1 exit from Upper Caves 6343 | -4/Proximity Caves | Learned location of 1 exit from Research 6361 | -4/Proximity Caves | Build established: Hacker-Sprinter 6361 | -4/Proximity Caves | Discovered exit to Factory (range 8) 6364 | -4/Proximity Caves | Entered Factory 6364 | -4/Factory | Evolved 2 slots: Propulsion x1, Utility x1 6413 | -4/Factory | Found Prototype Processor 6413 | -4/Factory | Identified Exp. Signal Interpreter 6424 | -4/Factory | Identified exit to Upper Caves 6803 | -4/Factory | Discovered new exit (range 8) 6819 | -4/Factory | Identified exit to Research 7019 | -4/Factory | Repaired Imp. Medium Armor Plating 7052 | -4/Factory | Repaired Field Propulsion Array 7070 | -4/Factory | Entered Research 7070 | -3/Research | Evolved 2 slots: Utility x2 7071 | -3/Research | Identified exit to Quarantine 7072 | -3/Research | Identified exit to Research 7146 | -3/Research | Repaired Nuclear Pulse Array 7173 | -3/Research | Spotted B-86 Titan 7286 | -3/Research | Discovered exit to Research (range 6) 7313 | -3/Research | Identified exit to Armory 7389 | -3/Research | Entered another Research area 7389 | -2/Research | Warlord forces began assault on 0b10 7389 | -2/Research | Evolved 2 slots: Propulsion x1, Utility x1 7413 | -2/Research | Discovered new exit (range 6) 7418 | -2/Research | Entered Access 7418 | -1/Access | Evolved 2 slots: Power x1, Propulsion x1 7422 | -1/Access | Found Prototype Device 7422 | -1/Access | Identified Exp. Shock Absorption System 7739 | -1/Access | Lost 6 parts (2p1n3u) 7859 | -1/Access | Spotted B-99 Colossus 7864 | -1/Access | Spotted B-99 Colossus 7867 | -1/Access | Spotted B-99 Colossus 7893 | -1/Access | Lost 3 parts (2n1u) 7918 | -1/Access | Search patrols dispatched 7977 | -1/Access | Discovered new exit (range 5) 7979 | *** | Escaped! Last Messages --------------- 07954_ G-73 Enforcer suffers critical hit (Burn). 07955_ Slug penetrates G-73 Enforcer. 07955_ Slug penetrates S-43 Plague. 07955_ S-43 Plague destroyed. 07955_ Slug penetrates Terminal. 07955_ Centrium Light Armor Plating destroyed. 07955_ Slug penetrates S-43 Plague. 07955_ Acquired 28 matter. 07955_ Wave Collapse Detector explodes. 07955_ S-43 Plague destroyed. 07955_ G-73 Enforcer destroyed. 07955_ Terminal disabled. 07955_ Slug penetrates Terminal. 07962_ Sealed Heavy Doors breached. 07963_ Imp. Heat Sink destroyed. 07974_ Sealed Barrier breached. 07977_ Main Access Shell breached. 07977_ EXIT=FOUND 07979_ Lgt. Quantum Reactor destroyed. [Achievement: Epsilon Run] Map ----- +----------------------------------------------------+ | ?????????????????????????????????????????????????? | | ?????????????????????????????????????????????????? | | ?????????????????????????????????????????????????? | | ?????????????????????????????????????????????????? | | ?????????????????????????????????????????????????? | | ?????????????????????????????????????????????????? | | ?????????????????????????????????????????????????? | | ?????????????????????????????????????????????????? | | ?????????????????????????????????????????????????? | | ?????????????????????????????????????????????????? | | ##########???????????????????????????????????????? | | #???????????????????????????????????????? | | ==] #???????????????????????????????????????? | | ==] #???????????????????????????????????????? | | ==] #???????????????????????????????????????? | | ##??????????????????????????????????????? | | #??????????????????????????????????????? | | #???????????????????????????????????????? | | #??????????????????????????????#????????? | | ??????????????????????????????? #????????? | | = ??#########??##########"????### #????????? | | ???# "??" "??? #????????? | | ????# "??" p p "?? #????????? | | "##"##+### "??" """""" "? #????????? | | "?"" " " " #????????? | | """ " "@ " s" #????????? | | "" " " "" " s #????????? | | " "" " " " #????????? | | ####"#+### """ """" " "?? #????????? | | ## # ""?" s "????""" #????????? | | ## # "??" "??????" #????????? | | ##" ! #########??##########"???????? #????????? | | ##""!%/ #???????????????????????????????????????? | | ##"" #???????????????????????????????????????? | | ##"" #???????????????????????????????????????? | | ##"" #???????????????????????????????????????? | | ?#"T #???????????????????????????????????????? | | ?#"" #???????????????????????????????????????? | | ?#"" #???????????????????????????????????????? | | ?#"" #???????????????????????????????????????? | | ?#"" #???????????????????????????????????????? | | ##" #???????????????????????????????????????? | | + #???????????????????????????????????????? | | ## #???????????????????????????????????????? | | ?# #???????????????????????????????????????? | | ?# #???????????????????????????????????????? | | ?#########???????????????????????????????????????? | | ?????????????????????????????????????????????????? | | ?????????????????????????????????????????????????? | | ?????????????????????????????????????????????????? | +----------------------------------------------------+ Best States ------------- Heat Dissipation 66 Energy Generation 55 Energy Capacity 700 Matter Stores 300 Matter Capacity 300 Sight Range 23 Robot Scan Range 14 Terrain Scan Range 16 Terrain Scan Density 10 ECM Strength 2 Cloak Strength 4 Armor Coverage 600 Resistance: KI 30 Resistance: TH 30 Resistance: EX 75 Evasion (%) 77 Targeting Accuracy 8 Melee Accuracy 5 Armor Integrity Analysis 50 Offensive Hacking 24 Defensive Hacking 42 Item Schematics ----------------- Xenon Bombardment Thruster | -6/Factory | Scanalyzed Combat Drone Bay | -6/Data Miner | Free Lgt. Regenerative Plating | -6/Data Miner | Free Cld. Gravmag System | -6/Data Miner | Free Imp. Matter Compressor | -6/Data Miner | Free Hvy. Proton Cannon | -6/Data Miner | Free Impulse Thruster | -6/Data Miner | Free Adv. Thermal Shield | -6/Data Miner | Free Hvy. Gauss Cannon | -6/Data Miner | Free Point Defense System | -6/Data Miner | Free Robot Schematics ------------------ A-15 Conveyor | -6/Data Miner | Free R-10 Processor | -6/Data Miner | Free M-22 Extractor | -6/Data Miner | Free B-60 Warrior | -6/Data Miner | Free Fabricated ------------ Nothing Repaired ---------- Xenon Bombardment Thruster | 99% | -6/Factory | Broken Imp. Medium Armor Plating | 35% | -4/Factory Field Propulsion Array | 60% | -4/Factory Nuclear Pulse Array | 85% | -3/Research Alien Tech Used ----------------- None Achievements -------------- Cya! Epsilon Run Ooh, Shiny! Challenges ------------ None Game ------ Seed ProtonSupersonicTerminator Manual? 0 Play Time 02:42:23 Cumulative 47.1 hours Start 2025.09.02 @ 17:36:43 End 2025.09.02 @ 21:51:25 Sessions 1 Manual Loads 0 Difficulty Rogue Special Mode None Game No. 71 Rogue 71 Adventurer 0 Explorer 0 Win Type 0 Total 1 Types 1/0/0/0/0/0/0/0/0/0 Lore% 41 Gallery% 36 Achievement% 36 Wizard Run 0 Options --------- Layout 0 ASCII 0 Keyboard 1 Movement Numpad Keybinds 0 Fullscreen 1 Font 24/Smallcaps Map View 76x50 Zoom Use 0% Tactical HUD 1 Map Filters NONE Filters NONE Steam 1 RUN: cf5ee50e-2514-4968-9bf2-b0970502b5b6